bitfinex/quotes_ETHUSD_20250724
["timestamp","ask_amount","ask_price","bid_price","bid_amount"]
[1753364522324,1e-08,3649.1,3649.0,2.74047684]
[1753364522525,1e-08,3649.1,3649.0,11.0136816]
[1753364522723,1e-08,3649.1,3649.0,11.90657684]
[1753364523127,1e-08,3649.9,3649.8,4.04607615]
[1753364523291,1e-08,3649.9,3649.8,11.63147491]
[1753364523490,1e-08,3649.9,3649.8,12.66117615]
[1753364523719,0.04,3650.9,3650.8,2.73912567]
[1753364523922,0.04,3650.9,3650.8,10.32451692]
[1753364524189,0.04,3650.9,3650.8,6.33432567]
[1753364524408,0.04,3650.9,3650.8,3.1368]
[1753364524623,0.04,3650.9,3650.8,3.0]
[1753364524827,0.04,3650.9,3650.2,0.34247957]
[1753364524828,2.9031952,3650.8,3650.2,0.34247957]
[1753364525041,0.3008,3650.8,3650.5,2.73935077]
[1753364525324,0.1368,3650.8,3650.6,7.556]
[1753364525491,0.1368,3650.8,3650.7,5.7392007]
[1753364525692,0.04,3650.9,3650.6,4.556]
[1753364525891,0.04,3650.9,3650.7,5.87599682]
[1753364526092,0.04,3650.9,3650.8,7.32251692]
[1753364526304,0.04,3650.9,3650.8,3.19752567]
[1753364526516,0.04,3650.9,3650.8,7.75352567]
[1753364527191,0.04,3650.9,3650.8,4.556]
[1753364527387,0.04,3650.9,3650.8,7.32251692]
[1753364527588,0.04,3650.9,3650.8,7.29512567]
[1753364527914,0.04,3650.9,3650.8,11.21542567]
[1753364528500,0.04,3650.9,3650.8,10.75352567]
[1753364528705,0.04,3650.9,3650.8,10.29312567]
[1753364529004,0.5026,3650.9,3650.8,3.0]
[1753364529337,0.04,3650.9,3650.8,3.0]
[1753364529638,0.04,3650.9,3650.8,7.554]
[1753364529823,0.04,3650.9,3650.8,10.42992567]
[1753364530541,0.04,3650.9,3650.8,11.66262567]
[1753364530742,0.04,3650.9,3650.8,7.554]
[1753364530900,0.04,3650.9,3650.8,3.0]
[1753364531238,0.04,3650.9,3650.8,7.554]
[1753364531438,0.04,3650.9,3650.8,10.75152567]
[1753364532211,0.04,3650.9,3650.8,10.29312567]
[1753364533446,0.04,3650.9,3650.8,3.0]
[1753364533623,1.1222,3650.9,3650.8,7.552]
[1753364533805,1.1222,3650.9,3650.2,0.21057564]
[1753364534013,0.1368,3650.5,3650.3,4.552]
[1753364534218,2.7392555,3650.7,3650.4,4.552]
[1753364534421,3.22215077,3650.5,3650.4,4.552]
[1753364534782,0.1368,3650.5,3650.4,4.552]
[1753364535040,0.1368,3650.5,3650.4,7.31882006]
[1753364535238,0.1768,3650.9,3650.4,7.88661218]
[1753364535440,0.1768,3650.9,3650.7,2.73918133]
[1753364535645,0.1768,3650.9,3650.8,5.73912567]
[1753364536357,0.1768,3650.9,3650.8,3.0]
[1753364536828,0.1768,3650.9,3650.7,4.551]
[1753364537029,0.9454,3650.8,3650.4,0.1368]
[1753364537353,0.1768,3650.9,3650.5,4.551]
[1753364537354,3.68460941,3650.7,3650.5,4.551]
[1753364537532,3.68460941,3650.7,3650.5,4.55]
[1753364537722,1.0822,3650.6,3650.5,4.55]
[1753364538118,0.1368,3650.6,3650.5,4.55]
[1753364538418,0.1368,3650.7,3650.5,4.55]
[1753364538721,0.1368,3650.7,3650.6,2.73927573]
[1753364538916,0.042,3650.9,3650.8,2.73912567]
[1753364539147,0.042,3650.9,3650.8,10.28912567]
[1753364540433,0.4747,3650.9,3650.8,7.55]
[1753364540651,0.6115,3650.9,3650.8,7.55]
[1753364541376,0.1788,3650.9,3650.8,10.28912567]
[1753364541668,0.042,3650.9,3650.8,10.88432567]
[1753364541834,0.042,3650.9,3650.8,10.42592567]
[1753364542034,0.042,3650.9,3650.8,10.42492567]
[1753364543434,0.042,3650.9,3650.8,10.88332567]
[1753364543674,0.042,3650.9,3650.8,11.35252567]
[1753364544045,0.042,3650.9,3650.8,12.14772567]
[1753364544567,0.042,3650.9,3650.8,11.67852567]
[1753364545070,0.042,3650.9,3650.8,6.33432567]
[1753364545273,0.042,3650.9,3650.8,10.88232567]
[1753364545428,0.042,3650.9,3650.8,11.35152567]
[1753364545970,2.73809694,3652.2,3650.8,11.35152567]
[1753364545971,0.1368,3653.4,3652.8,5.73762593]
[1753364546144,0.1368,3653.4,3652.8,10.42142593]
[1753364546468,0.1368,3653.4,3652.8,10.87982593]
[1753364546674,0.04,3653.9,3652.8,11.34902593]
[1753364546841,0.1768,3653.9,3653.8,2.73687667]
[1753364547041,0.04,3653.9,3653.8,7.49172451]
[1753364547754,0.04,3653.9,3653.6,3.0]
[1753364547957,0.6596,3653.9,3653.7,4.546]
[1753364548163,0.4327,3653.8,3653.7,7.546]
[1753364548368,0.4327,3653.8,3653.7,3.0]
[1753364548532,0.4327,3653.8,3653.7,7.546]
[1753364548733,0.4327,3653.8,3653.3,0.1368]
[1753364548961,0.1768,3653.9,3653.4,4.546]
[1753364548962,0.1368,3653.5,3653.4,4.546]
[1753364549164,0.1368,3653.5,3653.4,7.28317632]
[1753364549466,0.1368,3653.5,3653.4,4.546]
[1753364549672,1.2046,3653.5,3653.0,0.1368]
[1753364549969,1.2046,3653.5,3652.8,0.20687428]
[1753364549970,0.1368,3653.1,3652.8,3.20687428]
[1753364550145,0.4327,3653.0,3652.8,3.0]
[1753364550546,0.1368,3653.1,3652.8,3.0]
[1753364550746,0.1368,3653.1,3652.8,5.73761737]
[1753364550953,0.1368,3653.1,3652.9,4.544]
[1753364551375,0.9038,3653.0,3652.9,4.544]
[1753364551671,0.9038,3653.0,3652.7,3.0]
[1753364551672,0.4327,3653.0,3652.7,4.544]
[1753364551871,0.4327,3653.0,3652.8,3.0]
[1753364552075,0.1368,3652.9,3652.8,3.0]
[1753364552277,2.73660141,3654.2,3652.8,3.0]
[1753364552278,0.4078152,3653.7,3653.6,2.73702649]
[1753364552451,0.9802286,3655.0,3653.6,2.73702649]
[1753364552452,0.4711,3654.4,3653.6,4.543]
[1753364552650,0.4327,3653.8,3653.6,4.543]
[1753364553054,0.04,3653.9,3653.6,4.543]
[1753364553238,0.04,3653.9,3653.6,7.27996649]
[1753364553650,0.04,3653.9,3653.7,2.7369268]
[1753364553844,0.04,3653.9,3653.6,4.543]
[1753364554077,0.04,3653.9,3653.6,7.2800235]
[1753364554383,0.4727,3653.9,3653.6,4.543]
[1753364554579,3.33364005,3653.8,3653.6,4.543]
[1753364554878,3.64075158,3653.7,3653.6,4.543]
[1753364555064,1.0567307,3653.7,3653.6,4.543]
[1753364555266,0.9038,3653.7,3653.6,4.543]
[1753364555482,0.1529307,3653.7,3653.6,4.542]
[1753364555689,0.042,3653.9,3653.8,2.73687667]
[1753364555980,0.042,3653.9,3653.8,4.542]
[1753364556183,0.042,3653.9,3653.8,7.27887667]
[1753364556482,0.042,3653.9,3653.8,7.75257667]
[1753364557184,0.164,3653.4,3651.8,4.541]
[1753364557485,0.9038,3653.3,3652.0,3.7966]
[1753364557784,2.73788685,3652.5,3651.8,2.93917395]
[1753364557959,2.73778767,3652.6,3651.9,7.27929573]
[1753364558159,0.4327,3652.7,3652.0,7.541]
[1753364558481,2.73790306,3652.5,3652.1,4.54]
[1753364558685,2.73789284,3652.5,3652.2,4.54]
[1753364558985,2.73789284,3652.5,3652.3,4.54]
[1753364559182,0.4327,3653.3,3652.3,4.54]
[1753364559557,2.73764572,3652.8,3652.3,4.54]
[1753364559756,2.73773726,3652.7,3652.3,4.54]
[1753364560084,2.7377896,3652.6,3652.3,4.54]
[1753364560755,2.7378743,3652.5,3652.3,4.54]
[1753364560951,0.4327,3653.1,3652.3,4.54]
[1753364561148,2.73779049,3652.6,3652.3,4.54]
[1753364561386,2.73785818,3652.5,3652.3,4.54]
[1753364561551,2.73792574,3652.4,3652.3,4.54]
[1753364562188,0.1368,3652.4,3652.3,4.54]
[1753364562385,2.87472574,3652.4,3652.3,4.54]
[1753364562692,0.1368,3652.4,3651.9,0.1368]
[1753364562905,2.87502562,3652.0,3651.8,4.54]
[1753364563207,2.73830061,3651.9,3651.8,4.54]
[1753364563501,3.64210061,3651.9,3651.8,4.54]
[1753364563812,3.64210061,3651.9,3651.4,4.539]
[1753364563813,2.73860338,3651.5,3651.4,4.539]
[1753364564010,3.64215659,3651.9,3651.4,4.539]
[1753364564176,0.1368,3651.5,3651.4,4.539]
[1753364564370,0.1368,3651.5,3651.4,7.539]
[1753364564755,0.1368,3651.6,3651.4,7.539]
[1753364565682,0.1368,3651.6,3651.4,8.0127]
[1753364565989,0.4327,3652.4,3651.4,7.539]
[1753364566205,0.1368,3651.8,3651.4,7.539]
[1753364566581,0.9038,3651.7,3651.4,7.539]
[1753364566783,0.9038,3651.7,3651.1,0.04]
[1753364566784,0.5695,3651.6,3651.1,0.1768]
[1753364566967,0.5695,3651.6,3651.1,0.04]
[1753364566968,2.87562559,3651.2,3651.1,0.04]
[1753364567473,3.77942559,3651.2,3651.1,0.04]
[1753364567886,0.1368,3651.2,3651.1,0.04]
[1753364568071,0.164,3652.4,3651.3,2.73873701]
[1753364568268,0.1531615,3652.9,3651.8,0.8303]
[1753364568500,2.73755098,3652.9,3651.9,7.27724392]
[1753364568705,3.20870164,3652.9,3652.1,2.73813361]
[1753364569030,0.4711,3652.9,3652.3,2.73794395]
[1753364569218,0.164,3653.0,3652.3,4.539]
[1753364569586,0.164,3653.0,3652.3,7.27695655]
[1753364569832,0.164,3653.0,3652.3,7.27698675]
[1753364570103,2.73760515,3652.9,3652.3,4.539]
[1753364570303,2.90147983,3653.0,3652.3,7.27699505]
[1753364570504,2.90147983,3653.0,3652.3,7.27699995]
[1753364570868,0.164,3653.0,3652.4,2.73792574]
[1753364571407,2.90117672,3653.4,3652.4,2.76527416]
[1753364571581,0.164,3653.4,3652.4,0.02737925]
[1753364571779,0.164,3653.4,3653.0,2.73743465]
[1753364571994,0.164,3653.4,3653.1,2.73740042]
[1753364572194,0.25740334,3653.7,3653.1,0.7941]
[1753364572399,0.002,3653.7,3653.6,2.73702649]
[1753364572723,0.002,3653.7,3653.6,7.27502649]
[1753364573404,0.002,3653.7,3653.6,4.538]
[1753364576378,0.002,3653.7,3653.6,7.27502649]
[1753364576794,0.002,3653.7,3653.6,4.538]
[1753364577242,0.002,3653.7,3652.8,0.4737]
[1753364577510,0.002,3653.7,3653.3,3.0]
[1753364577685,0.002,3653.7,3653.2,2.73731811]
[1753364577686,0.002,3653.7,3653.4,4.537]
[1753364577887,0.9394,3653.6,3653.2,4.537]
[1753364578194,0.1368,3653.3,3653.2,4.537]
[1753364579374,0.002,3653.7,3653.2,4.537]
[1753364579695,0.1368,3653.4,3653.3,2.73725125]
[1753364579906,0.1368,3653.4,3653.3,7.27325125]
[1753364580444,0.1368,3653.4,3652.4,0.4924]
[1753364580445,0.164,3653.3,3652.4,0.4924]
[1753364580732,0.164,3652.7,3651.1,0.5324]
[1753364580878,2.7384548,3651.7,3651.1,0.04]
[1753364581075,2.73843355,3651.8,3651.1,0.04]
[1753364581377,0.4683,3651.8,3651.4,0.001]
[1753364581688,0.6443,3651.9,3651.4,0.001]
[1753364581689,2.73860057,3651.5,3651.4,0.001]
[1753364581897,0.164,3651.5,3651.4,0.001]
[1753364582079,3.85120057,3651.5,3651.4,0.001]
[1753364582990,3.37090057,3651.5,3651.4,0.001]
[1753364583314,0.4683,3651.5,3651.4,0.001]
[1753364583627,0.9486,3651.5,3651.4,0.001]
[1753364583816,3.68720057,3651.5,3651.4,0.001]
[1753364584420,3.85120057,3651.5,3651.4,0.001]
[1753364586006,3.37090057,3651.5,3651.4,0.001]
[1753364586381,3.21860921,3651.9,3651.4,0.001]
[1753364586579,2.73804992,3652.3,3651.6,2.73847028]
[1753364586806,2.90192957,3652.4,3651.7,2.73843644]
[1753364587182,2.90192957,3652.4,3651.4,0.9225]
[1753364587183,2.7380038,3652.3,3651.4,0.9225]
[1753364587383,0.164,3652.4,3651.4,0.4934]
[1753364587584,2.73819396,3652.1,3651.4,0.001]
[1753364588114,2.90194848,3652.4,3651.4,0.001]
[1753364588315,0.164,3652.4,3651.4,0.001]
[1753364588516,0.9486,3652.3,3651.4,0.001]
[1753364588722,2.73815065,3652.1,3651.4,0.001]
[1753364588927,2.73827444,3652.0,3651.4,0.001]
[1753364589131,2.73831514,3651.9,3651.4,0.001]
[1753364589326,0.4803,3652.2,3651.4,0.001]
[1753364589533,2.73819849,3652.1,3651.4,2.73966581]
[1753364589696,2.73823756,3652.0,3651.4,0.001]
[1753364590027,3.2063011,3652.3,3651.4,0.001]
[1753364590209,2.73808055,3652.2,3651.4,0.001]
[1753364590633,0.1368,3651.5,3651.4,0.001]
[1753364591330,0.164,3652.4,3651.4,0.94988675]
[1753364591533,0.164,3652.4,3651.6,2.73851576]
[1753364591534,0.1368,3651.8,3651.6,2.73851576]
[1753364592229,0.1368,3651.8,3651.4,0.9225]
[1753364592436,2.73807568,3652.2,3651.4,0.001]
[1753364592652,0.1368,3651.5,3651.4,2.73967557]
[1753364592803,0.4683,3652.3,3651.6,2.73852411]
[1753364593137,0.164,3652.4,3651.7,3.23078143]
[1753364593304,0.1368,3651.8,3651.7,3.23078143]
[1753364593499,0.164,3652.8,3651.8,2.73834988]
[1753364593817,0.1368,3652.1,3651.7,0.4924]
[1753364593998,0.1368,3652.1,3651.6,4.6718]
[1753364594204,0.1368,3652.1,3651.8,0.4924]
[1753364594506,0.1368,3652.1,3651.7,3.16753266]
[1753364594856,0.1368,3652.1,3652.0,2.73822562]
[1753364595001,0.164,3653.2,3652.1,3.0]
[1753364595207,0.1368,3652.7,3652.5,2.73782878]
[1753364595407,0.1368,3652.7,3652.6,0.4924]
[1753364595641,0.1368,3652.7,3652.3,2.73797659]
[1753364595802,0.1368,3652.7,3652.3,4.534]
[1753364596007,0.1368,3652.4,3652.3,4.534]
[1753364596423,0.1368,3652.4,3652.3,7.27200071]
[1753364596654,0.1368,3652.4,3652.3,4.534]
[1753364596854,0.1368,3652.4,3651.9,4.534]
[1753364597026,2.73790718,3652.5,3652.0,3.0]
[1753364597224,0.1368,3652.1,3651.6,0.1368]
[1753364597551,0.1368,3652.1,3651.9,4.533]
[1753364599552,0.164,3653.2,3652.7,2.73766804]
[1753364599747,0.4683,3653.4,3652.8,2.73762384]
[1753364599913,0.1368,3652.9,3652.6,2.73777583]
[1753364600119,0.1368,3652.9,3652.3,5.4711]
[1753364600436,1.23320264,3653.6,3652.3,4.532]
[1753364600437,0.4683,3652.8,3652.3,4.532]
[1753364600624,0.1368,3652.4,3652.3,7.76240071]
[1753364601414,0.4513,3653.2,3652.5,2.73778703]
[1753364601614,0.1368,3652.5,3652.3,7.76234424]
[1753364601834,0.4513,3653.2,3652.4,3.23028269]
[1753364602172,2.73782692,3652.6,3651.8,0.7612]
[1753364602314,0.164,3652.7,3651.9,4.532]
[1753364602315,0.1368,3652.4,3651.9,4.532]
[1753364602516,0.164,3652.7,3651.8,7.27031338]
[1753364602517,0.1368,3652.2,3651.8,7.27031338]
[1753364602743,0.1368,3652.2,3651.9,3.23068309]
[1753364602961,0.1368,3652.2,3651.8,4.532]
[1753364603256,0.9316,3652.1,3651.4,0.001]
[1753364603552,0.1368,3651.7,3651.4,0.001]
[1753364603764,0.4513,3652.1,3651.5,2.73855189]
[1753364604129,0.1368,3651.6,3651.5,2.73860057]
[1753364604326,7.26886014,3652.5,3651.8,2.73831823]
[1753364604644,0.1368,3651.9,3651.7,2.73842585]
[1753364604949,0.1368,3651.7,3651.4,0.001]
[1753364605139,0.1368,3651.5,3651.4,0.001]
[1753364605628,2.87540057,3651.5,3651.4,0.001]
[1753364605961,3.80700057,3651.5,3651.4,0.001]
[1753364606859,2.87540057,3651.5,3651.4,0.001]
[1753364607748,3.80700057,3651.5,3651.4,0.001]
[1753364608151,4.35700057,3651.5,3651.4,0.001]
[1753364608663,6.45282559,3651.2,3651.1,1e-08]
[1753364608862,11.13633035,3651.2,3651.1,1e-08]
[1753364609063,26.61860292,3651.2,3651.1,1e-08]
[1753364609266,23.74205526,3651.2,3651.1,1e-08]
[1753364609428,27.53960292,3651.2,3651.1,1e-08]
[1753364609828,28.27205526,3651.2,3651.1,1e-08]
[1753364610253,64.74494002,3651.2,3651.1,1e-08]
[1753364611164,34.74494002,3651.2,3651.1,1e-08]
[1753364611372,65.4807096,3651.2,3651.1,1e-08]
[1753364612441,64.74494002,3651.2,3651.1,1e-08]
[1753364612770,12.48960292,3651.2,3651.1,1e-08]
[1753364612969,13.03960292,3651.2,3651.1,1e-08]
[1753364613278,12.48960292,3651.2,3651.1,1e-08]
[1753364613438,8.50960292,3651.2,3651.1,1e-08]
[1753364613638,13.03860292,3651.2,3651.1,1e-08]
[1753364614299,4.03860292,3651.2,3651.1,1e-08]
[1753364614441,3.19313035,3651.2,3651.1,1e-08]
[1753364614779,7.55772614,3651.2,3651.1,1e-08]
[1753364615085,7.40462559,3651.2,3651.1,1e-08]
[1753364615441,4.6668,3651.2,3651.1,1e-08]
[1753364616174,0.1368,3651.2,3651.1,1e-08]
[1753364616336,0.1368,3651.2,3651.1,0.47490001]
[1753364617380,0.1368,3651.2,3651.1,3.21380061]
[1753364617559,0.1368,3651.2,3651.1,0.93330001]
[1753364617955,0.96549791,3651.9,3651.3,2.73867863]
[1753364618183,0.1368,3651.4,3651.1,3.96317218]
[1753364618489,0.1368,3651.4,3651.2,0.4584]
[1753364618695,0.1368,3651.4,3651.2,0.9333]
[1753364618862,0.1368,3651.4,3651.3,0.4749]
[1753364619058,0.1368,3651.4,3651.1,0.76590001]
[1753364619281,2.87553094,3651.4,3651.1,1e-08]
[1753364619457,0.1368,3651.2,3651.1,1e-08]
[1753364619897,2.87562559,3651.2,3651.1,1e-08]
[1753364620552,8.32462559,3651.2,3651.1,1e-08]
[1753364620749,8.87462559,3651.2,3651.1,1e-08]
[1753364621080,12.03862559,3651.2,3651.1,1e-08]
[1753364621247,12.77908559,3651.2,3651.1,1e-08]
[1753364621453,12.03862559,3651.2,3651.1,1e-08]
[1753364621677,12.62592046,3651.2,3651.1,1e-08]
[1753364621982,12.44679042,3651.2,3651.1,1e-08]
[1753364623388,42.44679042,3651.2,3651.1,1e-08]
[1753364623595,42.62582416,3651.2,3651.1,1e-08]
[1753364624272,43.03380453,3651.2,3651.1,1e-08]
[1753364624448,42.44660596,3651.2,3651.1,1e-08]
[1753364625347,56.94660596,3651.2,3651.1,1e-08]
[1753364625550,56.94460596,3651.2,3651.1,1e-08]
[1753364625901,6.89890596,3651.2,3651.1,1e-08]
[1753364626046,0.70878037,3651.2,3651.1,1e-08]
[1753364626263,7.40162559,3651.2,3651.1,1e-08]
[1753364626585,4.6628,3651.2,3651.1,1e-08]
[1753364626775,7.40162559,3651.2,3651.1,0.47490001]
[1753364626978,0.1368,3651.2,3651.1,0.47490001]
[1753364627297,4.6628,3651.2,3651.1,0.93330001]
[1753364627706,4.6628,3651.2,3651.1,0.47490001]
[1753364628269,7.40162559,3651.2,3651.1,0.47490001]
[1753364628499,4.6628,3651.2,3651.1,1e-08]
[1753364628666,4.6628,3651.2,3651.1,0.47490001]
[1753364629387,0.1368,3651.2,3651.1,4.43370061]
[1753364629703,4.525,3651.5,3651.2,2.73875879]
[1753364629926,0.1368,3651.4,3651.3,2.73875058]
[1753364630107,0.1368,3651.6,3651.3,0.9333]
[1753364630291,0.1368,3651.6,3651.5,2.73860057]
[1753364630695,0.1368,3652.1,3651.5,1.8972]
[1753364631011,0.1368,3652.1,3652.0,2.73822562]
[1753364631363,0.73516985,3652.4,3652.2,2.73807568]
[1753364631569,0.87196985,3652.4,3652.3,3.68780071]
[1753364631782,0.1368,3652.4,3652.3,3.68780071]
[1753364632190,0.91396985,3652.9,3652.8,2.73762593]
[1753364632417,0.91396985,3652.9,3652.8,3.51112593]
[1753364632419,0.042,3652.9,3652.8,3.51112593]
[1753364632609,0.042,3652.9,3652.8,4.46092593]
[1753364632839,0.042,3652.9,3652.8,7.59772593]
[1753364633986,0.002,3653.4,3653.3,3.49705125]
[1753364634195,0.002,3653.4,3653.3,3.52442376]
[1753364634408,0.002,3653.4,3653.3,4.47422376]
[1753364634681,0.002,3653.4,3653.3,4.44685125]
[1753364635912,0.002,3653.4,3653.3,1.2347]
[1753364636115,0.1388,3653.4,3653.3,0.7598]
[1753364636688,0.1388,3653.4,3653.3,1.2347]
[1753364637113,0.1388,3653.4,3653.3,4.44685125]
[1753364637311,0.002,3653.4,3653.3,4.47422376]
[1753364637686,0.002,3653.4,3653.3,4.44685125]
[1753364638119,0.002,3653.4,3653.3,1.7096]
[1753364638418,0.002,3653.4,3653.3,4.44685125]
[1753364638799,0.002,3653.4,3653.3,1.6881]
[1753364639187,0.002,3653.4,3653.3,4.42535125]
[1753364639946,0.206,3652.9,3651.1,0.49340001]
[1753364640104,3.55,3652.4,3651.1,0.04000001]
[1753364640301,15.05,3652.3,3651.1,0.04000001]
[1753364640530,0.55,3652.1,3651.1,0.04000001]
[1753364640826,4.518,3652.0,3651.1,0.04000001]
[1753364641010,2.73882559,3651.2,3651.1,0.04000001]
[1753364641229,2.73877471,3651.3,3651.1,0.04000001]
[1753364641440,2.73882559,3651.2,3651.1,0.49340001]
[1753364641739,4.518,3651.6,3651.1,0.49340001]
[1753364641940,2.73865832,3651.5,3651.1,0.04000001]
[1753364642108,2.73865832,3651.5,3651.2,0.4534]
[1753364642314,2.73861088,3651.5,3651.2,0.4534]
[1753364642845,4.518,3651.6,3651.2,0.4534]
[1753364643215,2.73865038,3651.5,3651.2,0.4534]
[1753364644029,2.73867842,3651.4,3651.2,0.4534]
[1753364644321,4.518,3651.6,3651.3,0.4534]
[1753364644514,4.518,3651.6,3651.4,0.4534]
[1753364644715,2.7386702,3651.5,3651.4,0.4534]
[1753364645259,2.73882559,3651.2,3651.1,0.04000001]
[1753364645433,2.73867557,3651.4,3651.1,0.04000001]
[1753364645434,2.73873328,3651.4,3651.1,0.04000001]
[1753364645617,2.73882559,3651.2,3651.1,0.04000001]
[1753364646245,7.25582559,3651.2,3651.1,0.04000001]
[1753364647464,4.517,3651.2,3651.1,0.04000001]
[1753364648043,7.25582559,3651.2,3651.1,0.04000001]
[1753364648736,4.517,3651.2,3651.1,0.04000001]
[1753364648937,7.25582559,3651.2,3651.1,0.04000001]
[1753364649252,4.517,3651.2,3651.1,0.04000001]
[1753364649626,7.25582559,3651.2,3651.1,0.04000001]
[1753364649932,7.39262559,3651.2,3651.1,0.04000001]
[1753364650944,8.30732559,3651.2,3651.1,0.04000001]
[1753364651621,7.39162559,3651.2,3651.1,0.04000001]
[1753364652658,4.54632559,3651.2,3651.1,0.04000001]
[1753364652858,9.06132559,3651.2,3651.1,0.04000001]
[1753364653959,3.99632559,3651.2,3651.1,0.04000001]
[1753364654163,8.51132559,3651.2,3651.1,0.04000001]
[1753364654669,8.02932559,3651.2,3651.1,0.04000001]
[1753364655461,8.51132559,3651.2,3651.1,0.04000001]
[1753364657766,9.06132559,3651.2,3651.1,0.04000001]
[1753364657946,4.54632559,3651.2,3651.1,0.04000001]
[1753364659034,3.08162559,3651.2,3651.1,0.04000001]
[1753364659248,0.002,3651.5,3651.1,0.49340001]
[1753364659444,0.002,3651.5,3651.1,0.51490001]
[1753364659656,0.002,3651.5,3651.2,0.4534]
[1753364659856,2.7387476,3651.4,3651.2,0.9283]
[1753364660089,2.7406006,3651.5,3651.2,0.4534]
[1753364660267,0.002,3651.5,3651.2,0.4534]
[1753364660886,0.002,3651.5,3651.1,0.04000001]
[1753364660887,2.73867557,3651.4,3651.3,0.4534]
[1753364661089,2.73882559,3651.2,3651.1,0.04000001]
[1753364661466,3.66302559,3651.2,3651.1,0.04000001]
[1753364662879,3.18102559,3651.2,3651.1,0.04000001]
[1753364663554,2.73882559,3651.2,3651.1,0.04000001]
[1753364663802,2.94474063,3651.4,3651.1,0.04000001]
[1753364663803,2.94467967,3651.4,3651.1,0.04000001]
[1753364663993,2.73882559,3651.2,3651.1,0.04000001]
[1753364664168,3.18102559,3651.2,3651.1,0.04000001]
[1753364666588,2.73882559,3651.2,3651.1,0.04000001]
[1753364666994,0.206,3651.4,3651.1,0.04000001]
[1753364667157,2.73882559,3651.2,3651.1,0.04000001]
[1753364667500,0.002,3651.5,3651.1,0.49340001]
[1753364667684,2.73872665,3651.4,3651.1,0.49340001]
[1753364667894,2.73872665,3651.4,3651.2,0.4534]
[1753364668086,2.74060869,3651.5,3651.2,0.4534]
[1753364668289,0.002,3651.5,3651.3,0.4534]
[1753364668476,0.002,3651.5,3651.4,3.63157557]
[1753364668806,0.002,3651.5,3651.4,0.4395]
[1753364669101,0.002,3651.5,3651.4,0.9214]
[1753364669275,0.002,3651.5,3651.1,0.04000001]
[1753364669477,0.1368,3651.2,3651.1,0.04000001]
[1753364670312,3.77512559,3651.2,3651.1,0.04000001]
[1753364670498,0.1368,3651.2,3651.1,0.52190001]
[1753364670685,2.87562559,3651.2,3651.1,0.04000001]
[1753364670886,3.77512559,3651.2,3651.1,0.04000001]
[1753364671091,4.47900545,3651.2,3651.1,0.04000001]
[1753364671297,4.73547188,3651.2,3651.1,0.04000001]
[1753364671599,5.67453225,3651.2,3651.1,0.04000001]
[1753364671794,5.67455715,3651.2,3651.1,0.04000001]
[1753364672203,5.21725715,3651.2,3651.1,0.04000001]
[1753364672530,3.28599678,3651.2,3651.1,0.04000001]
[1753364672828,2.87562559,3651.2,3651.1,0.04000001]
[1753364673994,3.77512559,3651.2,3651.1,0.04000001]
[1753364674228,4.47901817,3651.2,3651.1,0.04000001]
[1753364674425,4.7355058,3651.2,3651.1,0.04000001]
[1753364674830,5.46856617,3651.2,3651.1,0.04000001]
[1753364675005,46.10206541,3651.2,3651.1,1e-08]
[1753364675204,46.69293986,3651.2,3651.1,1e-08]
[1753364675816,45.71271126,3651.2,3651.1,1e-08]
[1753364676853,6.28942581,3650.4,3650.3,0.001]
[1753364677133,37.42748047,3650.4,3650.3,1e-08]
[1753364677350,38.32698047,3650.4,3650.3,1e-08]
[1753364677553,39.06582988,3650.4,3650.3,1e-08]
[1753364677732,38.53298047,3650.4,3650.3,1e-08]
[1753364677904,0.756,3650.1,3649.6,0.001]
[1753364678107,43.81300716,3649.8,3649.6,0.001]
[1753364678409,43.81300716,3649.8,3649.1,0.041]
[1753364678410,36.49632664,3649.2,3649.1,0.041]
[1753364678747,46.29144855,3649.2,3649.1,1e-08]
[1753364679136,46.69549256,3649.2,3649.1,1e-08]
[1753364679345,37.48531221,3649.2,3649.1,1e-08]
[1753364679524,37.94261221,3649.2,3649.1,1e-08]
[1753364680211,7.94261221,3649.2,3649.1,1e-08]
[1753364680521,3.83711221,3649.2,3649.1,1e-08]
[1753364680758,0.54678557,3649.2,3649.1,1e-08]
[1753364680960,2.87712664,3649.2,3649.1,1e-08]
[1753364681257,0.1368,3649.2,3649.1,1e-08]
[1753364681424,3.33442664,3649.2,3649.1,1e-08]
[1753364681630,3.42712664,3649.2,3649.1,1e-08]
[1753364681954,0.1368,3649.2,3649.1,1e-08]
[1753364682108,0.1368,3649.2,3649.1,0.48190001]
[1753364682308,0.1368,3649.2,3649.1,0.92140001]
[1753364682523,0.1368,3649.2,3649.1,1.68620001]
[1753364682927,0.1368,3649.2,3649.1,1e-08]
[1753364683349,2.87712664,3649.2,3649.1,1e-08]
[1753364683513,4.32662664,3649.2,3649.1,1e-08]
[1753364683718,7.53262664,3649.2,3649.1,1e-08]
[1753364683919,38.27435028,3649.2,3649.1,1e-08]
[1753364684131,8.27435028,3649.2,3649.1,1e-08]
[1753364684716,7.37485028,3649.2,3649.1,1e-08]
[1753364684912,7.22179472,3649.2,3649.1,1e-08]
[1753364685158,8.27427817,3649.2,3649.1,1e-08]
[1753364685362,7.53262664,3649.2,3649.1,1e-08]
[1753364685784,7.68553557,3649.2,3649.1,1e-08]
[1753364686379,7.53262664,3649.2,3649.1,1e-08]
[1753364686890,7.66272167,3649.2,3649.1,1e-08]
[1753364687192,7.07532664,3649.2,3649.1,1e-08]
[1753364688460,5.87712664,3649.2,3649.1,1e-08]
[1753364688980,0.1368,3649.2,3649.1,0.48190001]
[1753364689386,0.1368,3649.2,3649.1,0.92140001]
[1753364690095,0.1368,3649.2,3649.1,0.48190001]